bitfinex/quotes_BTCUSD_20240818
["timestamp","ask_amount","ask_price","bid_price","bid_amount"]
[1723987904997,0.2441,60202.0,60201.0,0.0213849]
[1723987905371,0.2501,60202.0,60201.0,0.0213849]
[1723987905639,0.2441,60202.0,60201.0,0.0213849]
[1723987905844,0.2381,60202.0,60201.0,0.1376619]
[1723987906017,0.2381,60202.0,60201.0,0.1386619]
[1723987906220,0.2381,60202.0,60201.0,0.1396619]
[1723987907584,0.2381,60202.0,60201.0,0.0233849]
[1723987907790,0.2381,60202.0,60201.0,0.0029086]
[1723987907791,0.586925,60202.0,60201.0,0.0029086]
[1723987908218,0.354375,60202.0,60201.0,0.0029086]
[1723987908606,0.586925,60202.0,60201.0,0.0019086]
[1723987908860,0.586925,60202.0,60201.0,0.0009086]
[1723987909008,0.363375,60202.0,60201.0,0.0009086]
[1723987909581,0.366375,60202.0,60201.0,0.0009086]
[1723987909787,0.362375,60202.0,60201.0,0.0009086]
[1723987910036,0.354375,60202.0,60201.0,0.0009086]
[1723987910239,0.358375,60202.0,60201.0,0.0009086]
[1723987910806,0.356375,60202.0,60201.0,0.0009086]
[1723987911401,0.2401,60202.0,60201.0,0.0009086]
[1723987911604,0.356375,60202.0,60201.0,0.0009086]
[1723987911740,0.354375,60202.0,60201.0,0.0009086]
[1723987911928,0.355375,60202.0,60201.0,0.0009086]
[1723987912129,0.356375,60202.0,60201.0,0.0009086]
[1723987912549,0.355375,60202.0,60201.0,0.0009086]
[1723987913002,0.355375,60202.0,60201.0,0.0019086]
[1723987913201,0.355375,60202.0,60201.0,0.0029086]
[1723987916494,0.2391,60202.0,60201.0,0.1191856]
[1723987917291,0.2391,60202.0,60201.0,0.13966243]
[1723987918278,0.2391,60202.0,60201.0,0.02338543]
[1723987920472,0.2391,60202.0,60201.0,0.13966243]
[1723987920843,0.2391,60202.0,60201.0,0.02338574]
[1723987923994,0.2391,60202.0,60201.0,0.0029086]
[1723987924200,0.2391,60202.0,60201.0,0.02338581]
[1723987924525,0.2391,60202.0,60201.0,0.0029086]
[1723987924768,0.2391,60202.0,60201.0,0.02338588]
[1723987925739,0.2391,60202.0,60201.0,0.04669689]
[1723987925980,0.2391,60202.0,60201.0,0.02338546]
[1723987926191,0.2391,60202.0,60201.0,0.16297395]
[1723987926546,0.2391,60202.0,60201.0,0.62808195]
[1723987926950,0.2391,60202.0,60201.0,0.6372335]
[1723987927202,0.2391,60202.0,60201.0,0.4046795]
[1723987928174,0.2391,60202.0,60201.0,0.40467824]
[1723987929930,0.2391,60202.0,60201.0,0.3517396]
[1723987930176,0.2391,60202.0,60201.0,0.40467824]
[1723987936235,0.2391,60202.0,60201.0,0.3955268]
[1723987936439,0.2391,60202.0,60201.0,0.42515455]
[1723987938183,0.2391,60202.0,60201.0,0.42515456]
[1723987940008,0.2391,60202.0,60201.0,0.19260056]
[1723987940184,0.2391,60202.0,60201.0,0.06717212]
[1723987940185,0.355375,60202.0,60201.0,0.06717212]
[1723987940430,0.355375,60202.0,60201.0,0.04386123]
[1723987941532,0.354375,60202.0,60201.0,0.04286123]
[1723987941969,0.587925,60202.0,60201.0,0.04186123]
[1723987942569,0.588925,60202.0,60201.0,0.02138492]
[1723987942768,0.587925,60202.0,60201.0,0.02138492]
[1723987943060,0.356375,60202.0,60201.0,0.02138492]
[1723987943264,0.356375,60202.0,60201.0,0.04469661]
[1723987943464,0.356375,60202.0,60201.0,0.02138492]
[1723987944453,0.356375,60202.0,60201.0,0.04469693]
[1723987944776,0.2401,60202.0,60201.0,0.39352793]
[1723987945140,0.2401,60202.0,60201.0,0.84577993]
[1723987945716,0.2381,60202.0,60201.0,0.84577993]
[1723987945933,0.2381,60202.0,60201.0,0.84677993]
[1723987946157,0.2381,60202.0,60201.0,0.84777993]
[1723987947554,0.2381,60202.0,60201.0,0.84799336]
[1723987948362,0.2381,60202.0,60201.0,0.82468125]
[1723987948527,0.2381,60202.0,60201.0,0.84799219]
[1723987949146,0.2381,60202.0,60201.0,0.84799351]
[1723987950071,0.2381,60202.0,60201.0,0.61543951]
[1723987951988,0.2381,60202.0,60201.0,0.13063382]
[1723987952376,0.2381,60202.0,60201.0,0.04669591]
[1723987952377,0.354375,60202.0,60201.0,0.04669591]
[1723987952580,0.586925,60202.0,60201.0,0.02338602]
[1723987955964,0.354375,60202.0,60201.0,0.02338602]
[1723987956534,0.354375,60202.0,60201.0,0.0233861]
[1723987957356,0.354375,60202.0,60201.0,0.04669461]
[1723987957624,0.354375,60202.0,60201.0,0.0233861]
[1723987958257,0.819475,60202.0,60201.0,0.0233861]
[1723987958432,0.586925,60202.0,60201.0,0.0233861]
[1723987961137,0.354375,60202.0,60201.0,0.0029086]
[1723987961338,0.354375,60202.0,60201.0,0.04665887]
[1723987961339,0.2381,60202.0,60201.0,0.04665887]
[1723987961541,0.2381,60202.0,60201.0,0.09650304]
[1723987961978,0.2381,60202.0,60201.0,0.02336793]
[1723987962313,0.2381,60202.0,60201.0,0.04664947]
[1723987962646,0.2381,60202.0,60201.0,0.02336793]
[1723987962995,0.2381,60202.0,60201.0,0.04663283]
[1723987963151,0.2381,60202.0,60201.0,0.02336793]
[1723987963349,0.2381,60202.0,60201.0,0.0466313]
[1723987963693,0.2381,60202.0,60201.0,0.02336793]
[1723987963998,0.2381,60202.0,60201.0,0.21275167]
[1723987964149,0.2381,60202.0,60201.0,0.23764672]
[1723987964352,0.2381,60202.0,60201.0,0.12136972]
[1723987964752,0.2381,60202.0,60201.0,0.04660347]
[1723987965183,0.2381,60202.0,60201.0,0.49903573]
[1723987965793,0.2381,60202.0,60201.0,0.48990585]
[1723987967468,0.2381,60202.0,60201.0,0.16288047]
[1723987967881,0.2381,60202.0,60201.0,0.60605274]
[1723987968869,0.2381,60202.0,60201.0,0.60604725]
[1723987970574,0.2381,60202.0,60201.0,0.48977025]
[1723987972247,0.2381,60202.0,60201.0,0.12123432]
[1723987972472,0.2381,60202.0,60201.0,0.60604061]
[1723987972696,0.2381,60202.0,60201.0,0.59191267]
[1723987972948,0.2381,60202.0,60201.0,0.60604029]
[1723987973367,0.2381,60202.0,60201.0,0.56235123]
[1723987973575,0.2381,60202.0,60201.0,0.61517082]
[1723987974798,0.2381,60202.0,60201.0,0.54053448]
[1723987974925,0.2381,60202.0,60201.0,0.42425748]
[1723987975130,0.2381,60202.0,60201.0,0.49891383]
[1723987975938,0.2381,60202.0,60201.0,0.61519083]
[1723987976146,0.2381,60202.0,60201.0,0.49891383]
[1723987977307,0.2381,60202.0,60201.0,0.0465975]
[1723987978492,0.2381,60202.0,60201.0,0.04660284]
[1723987978697,0.2381,60202.0,60201.0,0.02333895]
[1723987978900,0.2381,60202.0,60201.0,0.13961595]
[1723987979105,0.2381,60202.0,60201.0,0.21264647]
[1723987979312,0.2381,60202.0,60201.0,0.16288086]
[1723987980038,0.2381,60202.0,60201.0,0.18938191]
[1723987980239,0.2381,60202.0,60201.0,0.0963683]
[1723987980644,0.2381,60202.0,60201.0,0.04660857]
[1723987980891,0.2381,60202.0,60201.0,0.0466087]
[1723987981092,0.2381,60202.0,60201.0,0.02334425]
[1723987981294,0.2381,60202.0,60201.0,0.04660721]
[1723987981497,0.2381,60202.0,60201.0,0.02334425]
[1723987981698,0.2381,60202.0,60201.0,0.04660656]
[1723987981894,0.2381,60202.0,60201.0,0.02334425]
[1723987982169,0.2381,60202.0,60201.0,0.04660709]
[1723987982543,0.2381,60202.0,60201.0,0.02334425]
[1723987982763,0.2381,60202.0,60201.0,0.04660899]
[1723987983330,0.2381,60202.0,60201.0,0.09637729]
[1723987983553,0.2381,60202.0,60201.0,0.0029086]
[1723987983754,0.2381,60202.0,60201.0,0.04660136]
[1723987984105,0.2381,60202.0,60201.0,0.0029086]
[1723987984262,0.2381,60202.0,60201.0,0.04659299]
[1723987984439,0.2381,60202.0,60201.0,0.02333688]
[1723987985095,0.2381,60202.0,60201.0,0.04659332]
[1723987985263,0.23805848,60202.0,60201.0,0.04659315]
[1723987985440,0.23805848,60202.0,60201.0,0.02333688]
[1723987985644,0.23805848,60202.0,60201.0,0.04659296]
[1723987985888,0.23805848,60202.0,60201.0,0.09636126]
[1723987986027,0.23805848,60202.0,60201.0,0.04649034]
[1723987986230,0.23805848,60202.0,60201.0,0.09624066]
[1723987986430,0.23805848,60202.0,60201.0,0.04649034]
[1723987986938,0.23805848,60202.0,60201.0,0.02323426]
[1723987987347,0.23805848,60202.0,60201.0,0.04648886]
[1723987987866,0.23805848,60202.0,60201.0,0.09623441]
[1723987988067,0.23805848,60202.0,60201.0,0.04648409]
[1723987988472,0.23805848,60202.0,60201.0,0.09623441]
[1723987988675,0.23805848,60202.0,60201.0,0.04648409]
[1723987988999,0.23805848,60202.0,60201.0,0.09622349]
[1723987989201,0.23805848,60202.0,60201.0,0.04648409]
[1723987989397,0.23805848,60202.0,60201.0,0.02322949]
[1723987989616,0.23805848,60202.0,60201.0,0.09622325]
[1723987989824,0.35433348,60202.0,60201.0,0.09622325]
[1723987990082,0.35433348,60202.0,60201.0,0.04648385]
[1723987990255,0.35433348,60202.0,60201.0,0.02322949]
[1723987991304,0.81943348,60202.0,60201.0,0.02322949]
[1723987991853,0.99098802,60202.0,60201.0,0.02322949]
[1723987992262,0.58688348,60202.0,60201.0,0.02322949]
[1723987992465,0.35433348,60202.0,60201.0,0.02322949]
[1723987992785,0.23805848,60202.0,60201.0,0.02322949]
[1723987992944,0.23805848,60202.0,60201.0,0.02122949]
[1723987993507,0.24005848,60202.0,60201.0,0.02122949]
[1723987993712,0.35633348,60202.0,60201.0,0.02122949]
[1723987994021,0.58888348,60202.0,60201.0,0.02122949]
[1723987995070,0.58688348,60202.0,60201.0,0.02122949]
[1723987995589,0.35533348,60202.0,60201.0,0.02122949]
[1723987996033,0.58788348,60202.0,60201.0,0.02122949]
[1723987996984,0.99198802,60202.0,60201.0,0.02122949]
[1723987997135,0.99198802,60202.0,60201.0,0.02123135]
[1723987997353,0.99198802,60202.0,60201.0,0.00080598]
[1723987998968,1.22453802,60202.0,60201.0,0.00080598]
[1723987999168,1.32453802,60202.0,60201.0,0.00080598]
[1723988000990,1.32353802,60202.0,60201.0,0.00080598]
[1723988001202,1.33153802,60202.0,60201.0,0.00080598]
[1723988001429,1.34053802,60202.0,60201.0,0.00080598]
[1723988001634,1.32353802,60202.0,60201.0,0.00080598]
[1723988002042,1.34136402,60202.0,60201.0,0.00080598]
[1723988002239,1.47650834,60202.0,60201.0,0.00080598]
[1723988002446,1.70905834,60202.0,60201.0,0.00080598]
[1723988002647,1.57391402,60202.0,60201.0,0.00080598]
[1723988004468,1.56591402,60202.0,60201.0,0.00080598]
[1723988004678,1.55691402,60202.0,60201.0,0.00080598]
[1723988004881,1.56491402,60202.0,60201.0,0.00080598]
[1723988005083,1.57891402,60202.0,60201.0,0.00080598]
[1723988005289,1.55691402,60202.0,60201.0,0.00080598]
[1723988005640,1.58291402,60202.0,60201.0,0.00080598]
[1723988017998,1.61823138,60202.0,60201.0,0.00080598]
[1723988019471,1.35036402,60202.0,60201.0,0.00080598]
[1723988019667,1.11781402,60202.0,60201.0,0.00080598]
[1723988023216,0.94625948,60202.0,60201.0,0.00080598]
[1723988023577,0.71370948,60202.0,60201.0,0.00080598]
[1723988028577,0.94625948,60202.0,60201.0,0.00080598]
[1723988039467,1.17880948,60202.0,60201.0,0.00080598]
[1723988040647,1.35036402,60202.0,60201.0,0.00080598]
[1723988047954,1.58291402,60202.0,60201.0,0.00080598]
[1723988050646,1.63274913,60202.0,60201.0,0.00080598]
[1723988051410,1.89521668,60202.0,60201.0,0.00080598]
[1723988051633,1.94514211,60202.0,60201.0,0.00080598]
[1723988051837,1.94614211,60202.0,60201.0,0.00080598]
[1723988052039,1.94514211,60202.0,60201.0,0.00080598]
[1723988052396,1.91914211,60202.0,60201.0,0.00080598]
[1723988052593,1.91714211,60202.0,60201.0,0.00080598]
[1723988052795,1.94514211,60202.0,60201.0,0.00080598]
[1723988055569,1.84447189,60202.0,60201.0,0.00080598]
[1723988055778,1.61092189,60202.0,60201.0,0.00080598]
[1723988055982,1.68665614,60202.0,60201.0,0.00080598]
[1723988056150,1.68565614,60202.0,60201.0,0.00080598]
[1723988057495,1.66073817,60202.0,60201.0,0.00080598]
[1723988057700,1.6347303,60202.0,60201.0,0.00080598]
[1723988057900,1.80628484,60202.0,60201.0,0.00080598]
[1723988058101,1.75746856,60202.0,60201.0,0.00080598]
[1723988058375,1.80728508,60202.0,60201.0,0.00080598]
[1723988059315,1.80628508,60202.0,60201.0,0.00080598]
[1723988059526,1.58491402,60202.0,60201.0,0.00080598]
[1723988059732,1.34685554,60202.0,60201.0,0.00080598]
[1723988059941,0.160226,60202.0,60201.0,0.00080598]
[1723988060161,0.160226,60202.0,60201.0,0.0212485]
[1723988060917,0.014826,60202.0,60201.0,0.1375255]
[1723988061329,0.014826,60202.0,60201.0,0.6026335]
[1723988061569,0.000826,60202.0,60201.0,0.6026335]
[1723988061771,0.014826,60202.0,60201.0,0.6026335]
[1723988062396,0.000826,60202.0,60201.0,0.6026335]
[1723988062838,0.000826,60202.0,60201.0,0.58319098]
[1723988063049,0.000826,60202.0,60201.0,0.60362816]
[1723988063280,0.000826,60202.0,60201.0,0.83618216]
[1723988068228,0.000826,60202.0,60201.0,2.33618216]
[1723988068575,0.000826,60202.0,60201.0,2.33716778]
[1723988068785,0.000826,60202.0,60201.0,2.78750978]
[1723988068965,0.000826,60202.0,60201.0,3.26463847]
[1723988069164,0.000825,60208.0,60207.0,0.814858]
[1723988069317,0.000825,60208.0,60207.0,1.02983534]
[1723988069522,0.000825,60208.0,60207.0,1.08378526]
[1723988069721,0.000825,60208.0,60207.0,1.0793865]
[1723988069921,0.000825,60208.0,60207.0,1.10261002]
[1723988070121,0.000825,60208.0,60207.0,1.0793865]
[1723988070537,0.000825,60208.0,60207.0,1.02982338]
[1723988071560,0.007825,60208.0,60207.0,1.02982338]
[1723988071883,0.013825,60208.0,60207.0,1.02982772]
[1723988072388,0.013825,60208.0,60207.0,1.02982774]
[1723988072582,0.007825,60208.0,60207.0,1.02982774]
[1723988072996,0.000825,60208.0,60207.0,1.03082774]
[1723988075500,0.000825,60208.0,60207.0,2.53082774]
[1723988075739,0.000825,60208.0,60207.0,2.51041254]
[1723988075952,0.000825,60208.0,60207.0,2.55123148]
[1723988076148,0.000825,60208.0,60207.0,2.53082206]
[1723988076465,0.000825,60208.0,60207.0,0.62573652]
[1723988076677,0.140425,60208.0,60207.0,0.605327]
[1723988078160,0.140425,60208.0,60207.0,0.582327]
[1723988080539,0.140425,60208.0,60207.0,0.117265]
[1723988081257,0.140425,60208.0,60207.0,0.582327]
[1723988081457,0.140425,60208.0,60207.0,0.349796]
[1723988083301,0.140425,60208.0,60207.0,0.37020865]
[1723988083540,0.140425,60208.0,60207.0,0.349796]
[1723988083687,0.140425,60208.0,60207.0,0.37020865]
[1723988083885,0.140425,60208.0,60207.0,0.349796]
[1723988084337,0.140425,60208.0,60207.0,0.37021284]
[1723988084566,0.140425,60208.0,60207.0,0.349796]
[1723988085461,0.140425,60208.0,60207.0,0.13768146]
[1723988085689,0.140425,60208.0,60207.0,0.37021246]
[1723988087651,0.140425,60208.0,60207.0,0.60274346]
[1723988087851,0.140425,60208.0,60207.0,0.62574346]
[1723988088054,0.140425,60208.0,60207.0,0.62573995]
[1723988089272,0.140425,60208.0,60207.0,0.64896571]
[1723988089475,0.140425,60208.0,60207.0,2.14896571]
[1723988089789,0.140425,60208.0,60207.0,0.64896571]
[1723988092225,0.140425,60208.0,60207.0,0.62855276]
[1723988092422,0.140425,60208.0,60207.0,0.62597032]
[1723988092856,0.140425,60208.0,60207.0,0.60555291]
[1723988093083,0.140425,60208.0,60207.0,0.62596598]
[1723988093256,0.140425,60208.0,60207.0,0.62596906]
[1723988093633,0.248425,60208.0,60207.0,0.39343806]
[1723988094033,0.248425,60208.0,60207.0,0.39343772]
[1723988094296,0.248425,60208.0,60207.0,0.3730233]
[1723988094487,0.248425,60208.0,60207.0,0.39343781]
[1723988096336,0.248425,60208.0,60207.0,0.40256146]
[1723988096563,0.248425,60208.0,60207.0,0.39343781]
[1723988096775,0.248425,60208.0,60207.0,0.05375945]
[1723988096950,0.248425,60208.0,60207.0,0.04463683]
[1723988097212,0.248425,60208.0,60207.0,0.0214121]
[1723988097623,0.248425,60208.0,60207.0,0.1376771]
[1723988098040,0.248425,60208.0,60207.0,0.0214121]
[1723988098565,0.248425,60208.0,60207.0,0.04464077]
[1723988099298,0.248425,60208.0,60207.0,0.04464092]
[1723988100891,0.248425,60208.0,60207.0,0.04464757]
[1723988101850,0.248425,60208.0,60207.0,0.17003675]
[1723988102040,0.248425,60208.0,60207.0,0.04464757]
[1723988102386,0.248425,60208.0,60207.0,0.05377175]
[1723988103831,0.248425,60208.0,60207.0,0.05377096]
[1723988104249,0.248425,60208.0,60207.0,0.05377117]
[1723988105250,0.24701233,60208.0,60207.0,0.05377117]
[1723988105867,0.24701233,60208.0,60207.0,0.40256717]
[1723988106069,0.24701233,60208.0,60207.0,0.17003617]
[1723988106882,0.24701233,60208.0,60207.0,0.21969819]
[1723988107143,0.24701233,60208.0,60207.0,0.45222919]
[1723988107705,0.24697081,60208.0,60207.0,0.45222919]
[1723988107907,0.24697081,60208.0,60207.0,0.41987435]
[1723988108285,0.24697081,60208.0,60207.0,0.45224203]
[1723988109624,0.24697081,60208.0,60207.0,0.40258001]
[1723988109807,0.24779681,60208.0,60207.0,0.40258001]
[1723988110445,0.24779681,60208.0,60207.0,0.17004901]
[1723988111586,0.24779681,60208.0,60207.0,0.24454298]
[1723988111995,0.24779681,60208.0,60207.0,0.17004995]
[1723988114200,0.24779681,60208.0,60207.0,0.05378495]
[1723988115202,0.59658681,60208.0,60207.0,0.05378495]
[1723988115415,0.82911381,60208.0,60207.0,0.02142161]
[1723988116074,0.82911381,60208.0,60207.0,0.02142565]
[1723988116426,0.82911381,60208.0,60207.0,0.001]
[1723988116625,0.82911381,60208.0,60207.0,0.02142522]
[1723988117327,0.82911381,60208.0,60207.0,0.02142356]
[1723988118682,0.36405981,60208.0,60207.0,0.02142356]
[1723988118881,0.24779681,60208.0,60207.0,0.02142356]
[1723988120180,0.24779681,60208.0,60207.0,0.001]
[1723988120336,0.24779681,60208.0,60207.0,0.02141924]
[1723988120818,0.24779681,60208.0,60207.0,0.09437727]
[1723988122266,0.24779681,60208.0,60207.0,0.04465087]
[1723988122497,0.24779681,60208.0,60207.0,0.09436379]
[1723988127045,0.59658681,60208.0,60207.0,0.02141924]
[1723988127278,0.82911381,60208.0,60207.0,0.02141924]
[1723988127977,0.82911381,60208.0,60207.0,0.001]
[1723988128197,0.82911381,60208.0,60207.0,0.02141596]
[1723988128655,0.82911381,60208.0,60207.0,0.02141472]
[1723988131044,0.82911381,60208.0,60207.0,0.02041472]
[1723988131455,0.83111381,60208.0,60207.0,0.02041472]
[1723988131660,0.82911381,60208.0,60207.0,0.02041472]
[1723988132262,0.348471,60204.0,60203.0,0.04970423]
[1723988132467,0.348471,60204.0,60203.0,0.04925501]
[1723988132671,0.348471,60204.0,60203.0,0.09895924]
[1723988133505,0.348471,60204.0,60203.0,0.04925501]
[1723988133705,0.348471,60204.0,60203.0,0.05025501]
[1723988134073,0.348471,60204.0,60203.0,0.05225501]
[1723988134919,0.581013,60204.0,60203.0,0.05225501]
[1723988135098,0.348471,60204.0,60203.0,0.05225501]
[1723988136248,0.348471,60204.0,60203.0,0.05235928]
[1723988138840,0.348471,60204.0,60203.0,0.05035928]
[1723988140278,0.348471,60204.0,60203.0,0.00661464]
[1723988140438,0.348471,60204.0,60203.0,0.05035683]
[1723988140635,0.348471,60204.0,60203.0,0.05135683]
[1723988141041,0.349471,60204.0,60203.0,0.05135683]
[1723988141303,0.348471,60204.0,60203.0,0.05135683]
[1723988142594,0.348471,60204.0,60203.0,0.04935683]
[1723988143928,0.581013,60204.0,60203.0,0.04935683]
[1723988144273,0.348471,60204.0,60203.0,0.04935683]
[1723988144676,0.581013,60204.0,60203.0,0.05035683]
[1723988145136,0.581013,60204.0,60203.0,0.04935683]
[1723988145337,0.582013,60204.0,60203.0,0.04935683]
[1723988145963,0.349471,60204.0,60203.0,0.05026543]
[1723988148195,0.349471,60204.0,60203.0,0.00652324]
[1723988148324,0.349471,60204.0,60203.0,0.05026523]
[1723988148786,0.349471,60204.0,60203.0,0.09435155]
[1723988148787,0.2332,60204.0,60203.0,0.09435155]
[1723988149083,0.2332,60204.0,60203.0,0.10029014]
[1723988149627,0.2332,60204.0,60203.0,0.10028717]
[1723988149840,0.2332,60204.0,60203.0,0.10941077]
[1723988150797,0.2332,60204.0,60203.0,0.22568377]
[1723988151000,0.1265,60204.0,60203.0,0.6190433]
[1723988151222,0.1265,60204.0,60203.0,0.8515893]
[1723988151601,0.1265,60204.0,60203.0,1.0841353]
[1723988151602,0.1255,60204.0,60203.0,1.0841353]
[1723988151806,0.1255,60204.0,60203.0,0.8515893]
[1723988151981,0.1265,60204.0,60203.0,0.8535893]
[1723988152182,0.1265,60204.0,60203.0,0.85358921]
[1723988152383,0.1265,60204.0,60203.0,1.08613521]
[1723988152617,0.1275,60204.0,60203.0,1.04439334]
[1723988152818,0.1275,60204.0,60203.0,1.08813181]
[1723988153317,0.1275,60204.0,60203.0,1.08813175]
[1723988153760,0.1275,60204.0,60203.0,1.01358476]
[1723988154091,0.1275,60204.0,60203.0,1.08814326]
[1723988154298,0.1275,60204.0,60203.0,1.08813822]
[1723988156384,0.1275,60204.0,60203.0,1.08813855]
[1723988156585,0.1275,60204.0,60203.0,1.08815305]
[1723988156796,0.1275,60204.0,60203.0,1.01358015]
[1723988157000,0.1275,60204.0,60203.0,1.0881526]
[1723988157001,0.2372,60204.0,60203.0,1.0881526]
[1723988157310,0.2372,60204.0,60203.0,1.08815978]
[1723988157906,0.2372,60204.0,60203.0,0.71964701]
[1723988158115,0.2372,60204.0,60203.0,0.41252856]
[1723988158572,0.2372,60204.0,60203.0,0.40340488]
[1723988159584,0.2372,60204.0,60203.0,0.47797733]
[1723988160270,0.2372,60204.0,60203.0,0.43423864]
[1723988160468,0.2372,60204.0,60203.0,0.47799239]
[1723988161211,0.2372,60204.0,60203.0,0.78106254]
[1723988161405,0.2372,60204.0,60203.0,0.88047374]
[1723988161699,0.2372,60204.0,60203.0,0.78106254]
[1723988161861,0.2372,60204.0,60203.0,1.01360854]
[1723988162671,0.2372,60204.0,60203.0,1.11308774]
[1723988163106,0.2372,60204.0,60203.0,1.01360828]
[1723988163503,0.2372,60204.0,60203.0,1.080629]
[1723988163854,0.2372,60204.0,60203.0,1.11308607]
[1723988164937,0.2372,60204.0,60203.0,1.08975395]
[1723988165149,0.2372,60204.0,60203.0,0.78105977]
[1723988165500,0.2372,60204.0,60203.0,1.01360577]
[1723988166263,0.2372,60204.0,60203.0,0.78105977]
[1723988166669,0.2372,60204.0,60203.0,1.01360577]
[1723988166877,0.2372,60204.0,60203.0,0.88053897]
[1723988167099,0.2372,60204.0,60203.0,0.78105977]
[1723988167300,0.2372,60204.0,60203.0,1.01360577]
[1723988167525,0.2372,60204.0,60203.0,0.78105977]
[1723988167946,0.2372,60204.0,60203.0,1.08820093]
[1723988168156,0.2372,60204.0,60203.0,0.78105977]
[1723988168362,0.2372,60204.0,60203.0,1.01360577]
[1723988168966,0.2372,60204.0,60203.0,0.78105977]
[1723988169173,0.2372,60204.0,60203.0,0.88053897]
[1723988169340,0.2372,60204.0,60203.0,1.11308497]
[1723988169749,0.2372,60204.0,60203.0,0.88053897]
[1723988171233,0.2372,60204.0,60203.0,0.88053375]
[1723988171442,0.2372,60204.0,60203.0,0.88052489]
[1723988172054,0.2372,60204.0,60203.0,0.87052489]
[1723988174156,0.2372,60204.0,60203.0,0.87054446]
[1723988174717,0.2372,60204.0,60203.0,0.77104462]
[1723988174923,0.2372,60204.0,60203.0,0.89539496]
[1723988175752,0.2372,60204.0,60203.0,0.87053938]
[1723988176128,0.2372,60204.0,60203.0,0.7710419]
[1723988176427,0.2372,60204.0,60203.0,0.89541375]
[1723988178264,0.2372,60204.0,60203.0,0.87208663]
[1723988178405,0.2372,60204.0,60203.0,1.12796062]
[1723988179447,0.2372,60204.0,60203.0,1.10463263]
[1723988179679,0.2372,60204.0,60203.0,1.12796023]
[1723988179882,0.2372,60204.0,60203.0,1.12796076]
[1723988180382,0.2372,60204.0,60203.0,1.12793064]
[1723988180785,0.2372,60204.0,60203.0,1.00357824]
[1723988180989,0.2372,60204.0,60203.0,1.04167866]
[1723988182648,0.2372,60204.0,60203.0,1.04258726]
[1723988182873,0.238026,60204.0,60203.0,1.04258726]
[1723988186270,0.238026,60204.0,60203.0,1.12882083]
[1723988186633,0.128326,60204.0,60203.0,1.4466878]
[1723988186872,0.128326,60204.0,60203.0,1.4696878]
[1723988187046,0.128326,60204.0,60203.0,2.9696878]
[1723988188259,0.128326,60204.0,60203.0,2.87871776]
[1723988188467,0.128326,60204.0,60203.0,2.96968723]
[1723988188857,0.128326,60204.0,60203.0,2.96056246]
[1723988189065,0.128326,60204.0,60203.0,3.00778752]
[1723988189468,0.128326,60204.0,60203.0,3.0077805]
[1723988191950,0.128326,60204.0,60203.0,3.06584737]
[1723988192151,0.128326,60204.0,60203.0,3.00778042]
[1723988192643,0.128326,60204.0,60203.0,3.0816069]
[1723988192817,0.128326,60204.0,60203.0,3.06584381]
[1723988193208,0.128326,60204.0,60203.0,3.06583989]
[1723988193616,0.128326,60204.0,60203.0,2.96967857]
[1723988193790,0.128326,60204.0,60203.0,2.93157832]
[1723988193995,0.128326,60204.0,60203.0,2.69903232]
[1723988193996,0.233126,60204.0,60203.0,2.69903232]
[1723988194395,0.233126,60204.0,60203.0,2.93157832]
[1723988197164,0.233126,60204.0,60203.0,2.90825199]
[1723988197364,0.233126,60204.0,60203.0,2.93157962]
[1723988198218,0.233126,60204.0,60203.0,1.43157962]
[1723988198626,0.233126,60204.0,60203.0,1.55592208]
[1723988199037,0.233126,60204.0,60203.0,1.43158493]
[1723988199333,0.233126,60204.0,60203.0,1.55592151]
[1723988199541,0.233126,60204.0,60203.0,1.55592273]
[1723988199742,0.233126,60204.0,60203.0,1.46968537]
[1723988200676,0.233126,60204.0,60203.0,1.23713937]
[1723988201099,0.233126,60204.0,60203.0,1.46968537]
[1723988201691,0.233126,60204.0,60203.0,1.46968902]
[1723988202223,0.233126,60204.0,60203.0,1.43723708]
[1723988202423,0.233126,60204.0,60203.0,1.23715576]
[1723988202773,0.233126,60204.0,60203.0,1.46970176]
[1723988203545,0.233126,60204.0,60203.0,2.96970176]
[1723988204263,0.233126,60204.0,60203.0,1.46970176]
[1723988205170,0.233126,60204.0,60203.0,1.52777911]
[1723988206281,0.233126,60204.0,60203.0,1.44928117]
[1723988206509,0.233126,60204.0,60203.0,1.52777467]
[1723988207098,0.233126,60204.0,60203.0,1.29522867]
[1723988207527,0.233126,60204.0,60203.0,1.23715307]
[1723988207858,0.233126,60204.0,60203.0,1.3615306]
[1723988208090,0.233126,60204.0,60203.0,1.46970089]
[1723988208837,0.233126,60204.0,60203.0,1.23715489]
[1723988209539,0.233126,60204.0,60203.0,1.29523049]
[1723988209690,0.233126,60204.0,60203.0,1.52777649]
[1723988209893,0.233126,60204.0,60203.0,3.02777649]
[1723988210544,0.233126,60204.0,60203.0,2.96970089]
[1723988210751,0.233126,60204.0,60203.0,2.75293405]
[1723988210974,0.233126,60204.0,60203.0,2.79527141]
[1723988211171,0.233126,60204.0,60203.0,2.75293439]
[1723988211380,0.233126,60204.0,60203.0,2.81103488]
[1723988211590,0.233126,60204.0,60203.0,3.04358088]
[1723988211785,0.233126,60204.0,60203.0,2.98548039]
[1723988211987,0.233126,60204.0,60203.0,2.81102616]
[1723988212191,0.233126,60204.0,60203.0,2.75293439]
[1723988212619,0.233126,60204.0,60203.0,2.73716354]
[1723988212843,0.233126,60204.0,60203.0,2.75293125]
[1723988213605,0.233126,60204.0,60203.0,2.65529976]
[1723988213804,0.233126,60204.0,60203.0,2.75293738]
[1723988215050,0.233126,60204.0,60203.0,2.67106462]
[1723988215248,0.233126,60204.0,60203.0,2.75293282]
[1723988215675,0.233126,60204.0,60203.0,2.72804056]
[1723988215900,0.233126,60204.0,60203.0,2.75293352]
[1723988216063,0.233126,60204.0,60203.0,2.98547952]
[1723988216835,0.233126,60204.0,60203.0,2.75291095]
[1723988217235,0.233126,60204.0,60203.0,2.98545695]
[1723988217696,0.233126,60204.0,60203.0,2.75291095]
[1723988218138,0.233126,60204.0,60203.0,2.98545695]
[1723988219322,0.233126,60204.0,60203.0,2.67104177]
[1723988219521,0.233126,60204.0,60203.0,2.75290886]
[1723988219751,0.233126,60204.0,60203.0,2.98545486]
[1723988220152,0.233126,60204.0,60203.0,2.75290886]
[1723988220731,0.233126,60204.0,60203.0,2.98545486]
[1723988220925,0.233126,60204.0,60203.0,2.75290886]
[1723988221128,0.233126,60204.0,60203.0,2.79522977]
[1723988221557,0.233126,60204.0,60203.0,2.73714363]